fUST/lending_fUST_20251127
["ID","MTS","AMOUNT","RATE_DAILY","PERIOD"]
[394968944,1764223967811,-500.0,0.00032876,2]
[394968945,1764223967820,-500.0,0.00032876,2]
[394968946,1764223967828,-500.0,0.00032876,2]
[394968947,1764223967837,-500.0,0.00032876,2]
[394968948,1764223967849,-600.0,0.00032876,2]
[394968949,1764223967858,-5985.17,0.00032876,120]
[394968950,1764223967868,-417.00300745,0.00032876,2]
[394968951,1764223967877,-500.0,0.00032876,2]
[394968952,1764223967887,-300.0,0.00032876,2]
[394968953,1764223967897,-209.01126597,0.00032877,2]
[394968954,1764223967906,-1000.0,0.00032877,5]
[394968955,1764223967916,-150.0,0.00032877,5]
[394968956,1764223967925,-500.0,0.00032877,7]
[394968957,1764223967935,-500.0,0.00032877,7]
[394968958,1764223967944,-500.0,0.00032877,7]
[394968959,1764223967954,-500.0,0.00032877,7]
[394968960,1764223967964,-500.0,0.00032877,7]
[394968961,1764223967974,-500.0,0.00032877,7]
[394968962,1764223967983,-157.31985623,0.00032877,7]
[394968963,1764223967993,-500.0,0.00032877,7]
[394968964,1764223968002,-500.0,0.00032877,7]
[394968965,1764223968011,-500.0,0.00032877,7]
[394968966,1764223968021,-500.0,0.00032877,7]
[394968967,1764223968030,-500.0,0.00032877,7]
[394968968,1764223968040,-500.0,0.00032877,7]
[394968969,1764223968049,-500.0,0.00032877,7]
[394968970,1764223968059,-500.0,0.00032877,7]
[394968971,1764223968068,-500.0,0.00032877,7]
[394968972,1764223968078,-500.0,0.00032877,7]
[394968973,1764223968087,-500.0,0.00032877,7]
[394968974,1764223968098,-500.0,0.00032877,7]
[394968975,1764223968107,-500.0,0.00032877,7]
[394968976,1764223968116,-500.0,0.00032877,7]
[394968977,1764223968125,-415.87870609,0.00032877,7]
[394968978,1764223968135,-500.0,0.00032877,7]
[394968979,1764223968144,-205.25145449,0.00032877,2]
[394968980,1764223968153,-160.0,0.00032921,6]
[394968981,1764223968164,-165.19145867,0.00032932,30]
[394968982,1764223968173,-158.78343214,0.00032959,30]
[394968983,1764223968183,-1010.73638026,0.00032995,120]
[394968984,1764223968192,-14325.06758506,0.00033,120]
[394968985,1764223968201,-88676.15488537,0.00033,2]
[394968986,1764223968211,-300.0,0.00033,120]
[394968987,1764223968220,-300.0,0.00033013,30]
[394968988,1764223968230,-301.6071529,0.00033083,30]
[394968989,1764223968240,-301.6071529,0.00033083,30]
[394968990,1764223968249,-301.6071529,0.00033083,30]
[394968991,1764223968258,-301.6071529,0.00033083,30]
[394968992,1764223968269,-301.6071529,0.00033083,30]
[394968993,1764223968278,-301.6071529,0.00033083,30]
[394968994,1764223968288,-301.6071529,0.00033083,30]
[394968995,1764223968297,-301.6071529,0.00033083,30]
[394968996,1764223968306,-315.0803213,0.00033083,30]
[394968997,1764223968315,-301.6071529,0.00033083,30]
[394968998,1764223968325,-301.6071529,0.00033083,30]
[394968999,1764223968334,-301.6071529,0.00033083,30]
[394969000,1764223968348,-301.6071529,0.00033083,30]
[394969001,1764223968357,-301.6071529,0.00033083,30]
[394969002,1764223968366,-301.6071529,0.00033083,30]
[394969003,1764223968376,-301.6071529,0.00033083,30]
[394969004,1764223968385,-301.6071529,0.00033083,30]
[394969005,1764223968394,-158.78343214,0.00033123,30]
[394969006,1764223968403,-12543.31402294,0.00033147,2]
[394969007,1764223968412,-300.0,0.0003315,30]
[394969008,1764223968422,-1800.0,0.00033151,120]
[394969009,1764223968431,-1500.0,0.00033165,2]
[394969010,1764223968440,-958.2383526,0.000332,117]
[394969011,1764223968449,-958.23835257,0.000332,117]
[394969012,1764223968459,-958.23835257,0.000332,117]
[394969013,1764223968468,-958.23835257,0.000332,117]
[394969014,1764223968478,-158.78343214,0.0003326,30]
[394969015,1764223968487,-300.0,0.00033287,30]
[394969016,1764223968496,-165.19145867,0.00033342,30]
[394969017,1764223968505,-793.36641,0.00033374,30]
[394969018,1764223968515,-396.683205,0.00033374,30]
[394969019,1764223968524,-300.0,0.00033424,30]
[394969020,1764223968533,-1181.83983167,0.00033425,5]
[394969021,1764223968543,-155.0,0.00033425,5]
[394969022,1764223968552,-158.78343214,0.00033425,30]
[394969023,1764223968562,-1800.0,0.00033425,120]
[394969024,1764223968571,-164.9234344,0.00033533,30]
[394969025,1764223968580,-300.0,0.00033561,30]
[394969026,1764223968592,-9427.03861719,0.00033579,2]
[394969027,1764223968603,-158.78343214,0.00033589,30]
[394969028,1764223968612,-200.0,0.000336,120]
[394969029,1764223968622,-200.0,0.000336,120]
[394969030,1764223968632,-300.0,0.00033698,30]
[394969031,1764223968641,-1800.0,0.00033699,120]
[394969032,1764223968650,-158.78343214,0.00033753,30]
[394969033,1764223968660,-834.4,0.000338,11]
[394969034,1764223968669,-2000.0,0.000338,11]
[394969035,1764223968679,-300.0,0.00033835,30]
[394969036,1764223968689,-4618.81183113,0.00033843,60]
[394969037,1764223968700,-158.78343214,0.0003389,30]
[394969038,1764223968711,-300.0,0.00033972,30]
[394969039,1764223968721,-562.48,0.00033972,2]
[394969040,1764223968733,-160.0,0.00033973,5]
[394969041,1764223968744,-1800.0,0.00033973,120]
[394969042,1764223968754,-19262.60807824,0.0003399,2]
[394969043,1764223968764,-1018.25744219,0.00034,2]
[394969044,1764223968776,-1500.0,0.00034,2]
[394969045,1764223968787,-1500.0,0.00034,2]
[394969046,1764223968797,-1500.0,0.00034,2]
[394969047,1764223968807,-1500.0,0.00034,2]
[394969048,1764223968817,-1500.0,0.00034,2]
[394969049,1764223968827,-1500.0,0.00034,2]
[394969050,1764223968836,-1500.0,0.00034,2]
[394969051,1764223968846,-1500.0,0.00034,2]
[394969052,1764223968864,-1500.0,0.00034,2]
[394969053,1764223968874,-1500.0,0.00034,2]
[394969054,1764223968884,-1500.0,0.00034,2]
[394969055,1764223969008,-538.92,0.00034,2]
[394969056,1764223969021,-400.0,0.00034,120]
[394969057,1764223969030,-158.78343214,0.00034055,30]
[394969058,1764223969041,-300.0,0.00034109,30]
[394969059,1764223969051,-302.00357,0.00034123,2]
[394969060,1764223969062,-302.0,0.00034123,2]
[394969061,1764223969071,-302.0,0.00034128,2]
[394969062,1764223969081,-158.78343214,0.00034219,30]
[394969063,1764223969091,-300.0,0.00034246,30]
[394969064,1764223969105,-95000.0,0.00034247,30]
[394969065,1764223969115,-1800.0,0.00034247,120]
[394969066,1764223969124,-420.1332827,0.00034318,30]
[394969067,1764223969134,-800.8267347,0.00034325,30]
[394969068,1764223969144,-396.683205,0.00034333,30]
[394969069,1764223969154,-396.683205,0.00034333,30]
[394969070,1764223969164,-396.683205,0.00034333,30]
[394969071,1764223969174,-396.683205,0.00034333,30]
[394969072,1764223969183,-232.4527894,0.00034333,30]
[394969073,1764223969193,-723.1792187,0.00034333,30]
[394969074,1764223969203,-300.0,0.00034383,30]
[394969075,1764223969212,-263.33196835,0.000345,30]
[394969076,1764223969222,-299.02175983,0.0003452,30]
[394969077,1764223969231,-5985.17,0.0003452,120]
[394969078,1764223969242,-165.0,0.00034521,5]
[394969079,1764223969252,-1800.0,0.00034521,120]
[394969080,1764223969262,-160.0,0.00034521,7]
[394969081,1764223969277,-184.0744812,0.00034521,5]
[394969082,1764223969287,-610.0974659,0.00034726,30]
[394969083,1764223969296,-1800.0,0.00034795,120]
[394969084,1764223969307,-1165.799999,0.000348,13]
[394969085,1764223969317,-1347.99208636,0.00034849,120]
[394969086,1764223969326,-367707.43515324,0.000349,2]
[394969087,1764223969336,-400.0,0.0003496,120]
[394969088,1764223969350,-1065.20720315,0.00034995,120]
[394969089,1764223969360,-21525.0,0.00035,2]
[394969090,1764223969369,-10737.65464322,0.00035,2]
[394969091,1764223969379,-919.9705491,0.00035,2]
[394969092,1764223969388,-659.3357992,0.00035,2]
[394969093,1764223969397,-1000.0,0.00035,2]
[394969094,1764223969407,-2000.0,0.00035,120]
[394969095,1764223969416,-2000.0,0.00035,120]
[394969096,1764223969426,-2000.0,0.00035,120]
[394969097,1764223969435,-1706.1787677,0.00035,120]
[394969098,1764223969444,-999.89484022,0.00035,120]
[394969099,1764223969454,-10021.47606884,0.00035,2]
[394969100,1764223969463,-287.96153143,0.00035,120]
[394969101,1764223969472,-195.13255673,0.00035,120]
[394969102,1764223969481,-216.24211234,0.00035,30]
[394969103,1764223969491,-3388.23859016,0.00035,2]
[394969104,1764223969500,-545.69815501,0.00035,120]
[394969105,1764223969510,-200.0,0.00035,120]
[394969106,1764223969519,-151.0,0.00035,120]
[394969107,1764223969528,-400.0,0.00035,120]
[394969108,1764223969538,-205.732785,0.00035,30]
[394969109,1764223969547,-200.0,0.00035,120]
[394969110,1764223969557,-1259.55922942,0.00035,120]
[394969111,1764223969567,-174.0,0.00035041,74]
[394969112,1764223969576,-1800.0,0.00035068,120]
[394969113,1764223969586,-562.48,0.00035068,2]
[394969114,1764223969596,-170.0,0.00035068,5]
[394969115,1764223969606,-6250.0,0.0003516,120]
[394969116,1764223969615,-164.9234344,0.00035168,30]
[394969117,1764223969625,-329.8468688,0.00035168,30]
[394969118,1764223969635,-164.9234344,0.00035168,30]
[394969119,1764223969645,-330.9899197,0.00035192,30]
[394969120,1764223969656,-200.0,0.000352,120]
[394969121,1764223969667,-200.0,0.000352,120]
[394969122,1764223969677,-790.3023657,0.00035279,30]
[394969123,1764223969687,-1800.0,0.00035342,120]
[394969124,1764223969696,-154.26,0.00035383,60]
[394969125,1764223969706,-1388.33,0.00035383,60]
[394969126,1764223969715,-154.26,0.00035483,60]
[394969127,1764223969726,-1388.33,0.00035483,60]
[394969128,1764223969735,-154.26,0.00035583,60]
[394969129,1764223969744,-1388.33,0.00035583,60]
[394969130,1764223969755,-12543.31402294,0.00035587,2]
[394969131,1764223969765,-1800.0,0.00035616,120]
[394969132,1764223969775,-250.0,0.00035616,15]
[394969133,1764223969785,-175.0,0.00035616,5]
[394969134,1764223969794,-151.0,0.00035616,31]
[394969135,1764223969804,-151.0,0.00035616,31]
[394969136,1764223969813,-151.0,0.00035616,31]
[394969137,1764223969823,-151.0,0.00035616,31]
[394969138,1764223969832,-151.0,0.00035616,31]
[394969139,1764223969842,-151.0,0.00035616,31]
[394969140,1764223969855,-151.0,0.00035616,31]
[394969141,1764223969865,-151.0,0.00035616,31]
[394969142,1764223969875,-151.0,0.00035616,31]
[394969143,1764223969884,-151.0,0.00035616,31]
[394969144,1764223969893,-154.758466,0.00035616,31]
[394969145,1764223969903,-154.26,0.00035683,60]
[394969146,1764223969912,-1388.33,0.00035683,60]
[394969147,1764223969922,-151.0,0.000357,120]
[394969148,1764223969932,-154.26,0.00035783,60]
[394969149,1764223969942,-1388.33,0.00035783,60]
[394969150,1764223969951,-154.26,0.00035883,60]
[394969151,1764223969961,-1388.33,0.00035883,60]
[394969152,1764223969972,-2000.0,0.0003589,120]
[394969153,1764223969982,-2000.0,0.0003589,120]
[394969154,1764223969992,-154.26,0.00035983,60]
[394969155,1764223970002,-1388.33,0.00035983,60]
[394969156,1764223970012,-164.9234344,0.00035989,30]
[394969157,1764223970021,-164.9234344,0.00035989,30]
[394969158,1764223970031,-164.9234344,0.00035989,30]
[394969159,1764223970041,-164.9234344,0.00035989,30]
[394969160,1764223970050,-164.9234344,0.00035989,30]
[394969161,1764223970060,-164.9234344,0.00035989,30]
[394969162,1764223970070,-164.9234344,0.00035989,30]
[394969163,1764223970080,-164.9234344,0.00035989,30]
[394969164,1764223970089,-164.9234344,0.00035989,30]
[394969165,1764223970100,-164.9234344,0.00035989,30]
[394969166,1764223970115,-164.9234344,0.00035989,30]
[394969167,1764223970124,-164.9234344,0.00035989,30]
[394969168,1764223970134,-164.9234344,0.00035989,30]
[394969169,1764223970144,-678.37,0.00036,7]
[394969170,1764223970159,-400.0,0.00036,120]
[394969171,1764223970170,-831.4483215,0.00036,60]
[394969172,1764223970180,-593.6265394,0.0003601,30]
[394969173,1764223970189,-154.26,0.00036083,60]
[394969174,1764223970199,-1388.33,0.00036083,60]
[394969175,1764223970208,-2000.0,0.00036164,120]
[394969176,1764223970218,-2000.0,0.00036164,120]
[394969177,1764223970228,-2000.0,0.00036164,120]
[394969178,1764223970237,-2000.0,0.00036164,120]
[394969179,1764223970246,-562.5201282,0.00036164,2]
[394969180,1764223970256,-5985.17,0.00036164,120]
[394969181,1764223970269,-180.0,0.00036164,5]
[394969182,1764223970280,-154.33292013,0.00036183,60]
[394969183,1764223970290,-1388.33,0.00036183,60]
[394969184,1764223970299,-2997.24,0.000362,14]
[394969185,1764223970311,-204.62043946,0.0003621,2]
[394969186,1764223970321,-266.1397184,0.0003624,2]
[394969187,1764223970331,-1388.33,0.00036283,60]
[394969188,1764223970340,-1388.33,0.00036383,60]
[394969189,1764223970353,-151.0,0.000364,120]
[394969190,1764223970363,-200.0,0.00036405,120]
[394969191,1764223970372,-2000.0,0.00036438,120]
[394969192,1764223970382,-2000.0,0.00036438,120]
[394969193,1764223970391,-1388.33,0.00036483,60]
[394969194,1764223970401,-1388.33,0.00036583,60]
[394969195,1764223970410,-323.6556599,0.00036644,30]
[394969196,1764223970419,-1388.33,0.00036683,60]
[394969197,1764223970430,-2000.0,0.00036712,120]
[394969198,1764223970439,-2000.0,0.00036712,120]
[394969199,1764223970449,-2000.0,0.00036712,120]
[394969200,1764223970459,-2000.0,0.00036712,120]
[394969201,1764223970469,-185.0,0.00036712,5]
[394969202,1764223970478,-1388.33,0.00036783,60]
[394969203,1764223970488,-610.3307673,0.00036786,30]
[394969204,1764223970497,-167556.37714377,0.00036789,60]
[394969205,1764223970507,-595.8577247,0.00036799,30]
[394969206,1764223970516,-595.8577247,0.00036799,30]
[394969207,1764223970526,-595.8577247,0.00036799,30]
[394969208,1764223970535,-567.6850603,0.00036799,30]
[394969209,1764223970545,-200.0,0.000368,120]
[394969210,1764223970554,-302.15800405,0.000368,120]
[394969211,1764223970563,-500.0,0.000368,120]
[394969212,1764223970572,-500.0,0.000368,90]
[394969213,1764223970581,-200.0,0.000368,120]
[394969214,1764223970591,-1184.2684062,0.00036811,30]
[394969215,1764223970601,-595.8577247,0.00036811,30]
[394969216,1764223970610,-595.8577247,0.00036811,30]
[394969217,1764223970619,-595.8577247,0.00036811,30]
[394969218,1764223970628,-595.8577247,0.00036811,30]
[394969219,1764223970637,-595.8577247,0.00036811,30]
[394969220,1764223970647,-595.8577247,0.00036811,30]
[394969221,1764223970656,-1144.1411506,0.00036811,30]
[394969222,1764223970667,-574.5868351,0.00036811,30]
[394969223,1764223970676,-245.49028831,0.00036822,2]
[394969224,1764223970687,-3781.04413161,0.0003686,2]
[394969225,1764223970696,-1388.33,0.00036883,60]
[394969226,1764223970706,-1388.33,0.00036983,60]
[394969227,1764223970716,-2000.0,0.00036986,120]
[394969228,1764223970725,-2000.0,0.00036986,120]
[394969229,1764223970735,-1119.67802604,0.00036995,120]
[394969230,1764223970744,-2040.22182519,0.00037,2]
[394969231,1764223970753,-3001.44315562,0.00037,14]
[394969232,1764223970762,-450.28109375,0.00037,120]
[394969233,1764223970771,-300.0,0.00037,120]
[394969234,1764223970780,-1388.33,0.00037083,60]
[394969235,1764223970790,-200.0,0.00037151,18]
[394969236,1764223970799,-1388.33,0.00037183,60]
[394969237,1764223970809,-151.0,0.000372,120]
[394969238,1764223970818,-200.0,0.00037213,120]
[394969239,1764223970828,-2000.0,0.0003726,120]
[394969240,1764223970838,-2000.0,0.0003726,120]
[394969241,1764223970848,-2000.0,0.0003726,120]
[394969242,1764223970858,-2000.0,0.0003726,120]
[394969243,1764223970870,-190.0,0.0003726,5]
[394969244,1764223970882,-1388.33,0.00037283,60]
[394969245,1764223970893,-150.08,0.00037303,60]
[394969246,1764223970902,-784.79,0.00037349,60]
[394969247,1764223970913,-151.36,0.00037353,60]
[394969248,1764223970923,-200.0,0.00037373,120]
[394969249,1764223970932,-1752.54,0.00037383,60]
[394969250,1764223970943,-1770.37,0.00037383,60]
[394969251,1764223970952,-1388.33,0.00037383,60]
[394969252,1764223970962,-150.08,0.00037403,60]
[394969253,1764223970971,-784.79,0.00037449,60]
[394969254,1764223970981,-151.36,0.00037453,60]
[394969255,1764223970991,-824.28842196,0.0003748,30]
[394969256,1764223971000,-1752.54,0.00037483,60]
[394969257,1764223971009,-1770.37,0.00037483,60]
[394969258,1764223971019,-1388.33,0.00037483,60]
[394969259,1764223971029,-150.08,0.00037503,60]
[394969260,1764223971038,-2000.0,0.00037534,120]
[394969261,1764223971048,-2000.0,0.00037534,120]
[394969262,1764223971058,-784.79,0.00037549,60]
[394969263,1764223971067,-151.36,0.00037553,60]
[394969264,1764223971076,-1752.54,0.00037583,60]
[394969265,1764223971087,-1770.37,0.00037583,60]
[394969266,1764223971096,-1388.33,0.00037583,60]
[394969267,1764223971107,-150.08,0.00037603,60]
[394969268,1764223971116,-669.7140325,0.00037608,30]
[394969269,1764223971126,-595.8577247,0.00037608,30]
[394969270,1764223971135,-595.8577247,0.00037608,30]
[394969271,1764223971145,-595.8577247,0.00037608,30]
[394969272,1764223971154,-595.8577247,0.00037608,30]
[394969273,1764223971164,-595.8577247,0.00037608,30]
[394969274,1764223971174,-595.8577247,0.00037608,30]
[394969275,1764223971496,-595.8577247,0.00037608,30]
[394969276,1764223971508,-595.8577247,0.00037608,30]
[394969277,1764223971517,-595.8577247,0.00037608,30]
[394969278,1764223971526,-595.8577247,0.00037608,30]
[394969279,1764223971535,-572.0705753,0.00037608,30]
[394969280,1764223971544,-784.79,0.00037649,60]
[394969281,1764223971553,-151.36,0.00037653,60]
[394969282,1764223971562,-603610.27,0.00037683,3]
[394969283,1764223971572,-7055.06,0.00037683,3]
[394969284,1764223971581,-1752.54,0.00037683,60]
[394969285,1764223971591,-1770.37,0.00037683,60]
[394969286,1764223971601,-1388.33,0.00037683,60]
[394969287,1764223971610,-200.0,0.00037684,120]
[394969288,1764223971619,-150.08,0.00037703,60]
[394969289,1764223971629,-270.331737,0.00037712,31]
[394969290,1764223971638,-784.79,0.00037749,60]
[394969291,1764223971648,-151.36,0.00037753,60]
[394969292,1764223971658,-1752.54,0.00037783,60]
[394969293,1764223971667,-1770.37,0.00037783,60]
[394969294,1764223971676,-1388.33,0.00037783,60]
[394969295,1764223971686,-1020.18464415,0.000378,2]
[394969296,1764223971695,-150.08,0.00037803,60]
[394969297,1764223971704,-2000.0,0.00037808,120]
[394969298,1764223971714,-2000.0,0.00037808,120]
[394969299,1764223971723,-2000.0,0.00037808,120]
[394969300,1764223971734,-2000.0,0.00037808,120]
[394969301,1764223971743,-5985.17,0.00037808,120]
[394969302,1764223971753,-195.0,0.00037808,5]
[394969303,1764223971764,-3209.77393958,0.0003784,120]
[394969304,1764223971774,-784.79,0.00037849,60]
[394969305,1764223971785,-151.36,0.00037853,60]
[394969306,1764223971796,-1752.54,0.00037883,60]
[394969307,1764223971806,-1770.37,0.00037883,60]
[394969308,1764223971817,-1388.33,0.00037883,60]
[394969309,1764223971828,-151.0,0.000379,120]
[394969310,1764223971838,-150.08,0.00037903,60]
[394969311,1764223971848,-784.79,0.00037949,60]
[394969312,1764223971858,-151.36,0.00037953,60]
[394969313,1764223971868,-1752.54,0.00037983,60]
[394969314,1764223971877,-1770.37,0.00037983,60]
[394969315,1764223971888,-1388.33,0.00037983,60]
[394969316,1764223971903,-871.44310972,0.00038,2]
[394969317,1764223971913,-232.96003496,0.00038,120]
[394969318,1764223971922,-2353.41219502,0.00038,30]
[394969319,1764223971933,-1005.18514891,0.00038,30]
[394969320,1764223971942,-2147.10414281,0.00038,120]
[394969321,1764223971952,-450.73646698,0.00038,120]
[394969322,1764223971962,-400.0,0.00038,120]
[394969323,1764223971972,-150.08,0.00038003,60]
[394969324,1764223971982,-9427.03861719,0.00038026,2]
[394969325,1764223971992,-958.23835257,0.00038027,120]
[394969326,1764223972003,-48.80320933,0.00038027,2]
[394969327,1764223972385,-342.55454446,0.00025343,2]
[394969328,1764224043252,1788.64842633,0.00014,10]
[394969347,1764224051425,1746.01890913,0.00014,10]
[394969421,1764224550118,-204.0,6.127e-05,2]
[394969422,1764224550139,-1467.0,6.127e-05,2]
[394969500,1764224759534,175.63,9.589e-05,25]
[394969671,1764225033105,-209.6934732,5.945e-05,2]
[394969672,1764225033114,-203.0,5.945e-05,2]
[394969673,1764225033123,-150.0,6.021e-05,2]
[394969674,1764225033133,-145.33576261,6.127e-05,2]
[394969678,1764225038091,-64.35771059,6.127e-05,2]
[394969679,1764225038101,-176.366,6.76e-05,2]
[394969680,1764225038111,-828.66685098,6.792e-05,2]
[394969682,1764225040300,-10356.84146848,6.792e-05,2]
[394969927,1764225044712,-388.3,6.792e-05,2]
[394969934,1764225045766,-1608.80000539,6.792e-05,2]
[394969939,1764225046375,-18829.70614485,6.792e-05,2]
[394970030,1764226232299,-226.88975035,6.266e-05,2]
[394970032,1764226232310,-205.0,6.329e-05,2]
[394970034,1764226232320,-69.90371955,6.458e-05,2]
[394970037,1764226232335,-80.09628045,6.458e-05,2]
[394970039,1764226232345,-176.367,6.656e-05,2]
[394970041,1764226232356,-184.53671955,6.684e-05,2]
[394970139,1764226238467,-46.46328045,6.684e-05,2]
[394970141,1764226238478,-300.0,6.684e-05,2]
[394970143,1764226238487,-300.0,6.684e-05,2]
[394970145,1764226238498,-764.65406583,6.684e-05,2]
[394970147,1764226238510,-435.34593417,6.684e-05,2]
[394970150,1764226238520,-500.0,6.684e-05,2]
[394970152,1764226238530,-165.01006962,6.684e-05,2]
[394970154,1764226238539,-27.77903334,6.684e-05,2]
[394970350,1764226246755,-472.22096666,6.684e-05,2]
[394970351,1764226246764,-162.36232093,6.684e-05,2]
[394970355,1764226539141,1073.12800173,0.0001212,6]
[394970370,1764226870705,400.0,0.00010959,30]
[394970400,1764227432585,-150.0,6.262e-05,2]
[394970402,1764227432594,-205.0,6.325e-05,2]
[394970404,1764227432603,-150.0,6.357e-05,2]
[394970405,1764227432612,-1.41507607,6.552e-05,2]
[394970412,1764227438585,-174.95192393,6.552e-05,2]
[394970413,1764227438594,-300.0,6.582e-05,2]
[394970414,1764227438603,-300.0,6.582e-05,2]
[394970415,1764227438614,-1200.0,6.582e-05,2]
[394970416,1764227438623,-70.01889153,6.583e-05,2]
[394970417,1764227438634,-433.97737242,6.583e-05,2]
[394970418,1764227438644,-363.41237386,6.583e-05,2]
[394970419,1764227438653,-500.0,6.583e-05,2]
[394970420,1764227438663,-500.0,6.583e-05,2]
[394970421,1764227438672,-500.0,6.583e-05,2]
[394970422,1764227438682,-500.0,6.583e-05,2]
[394970423,1764227438692,-300.30969152,6.583e-05,2]
[394970424,1764227438701,-500.0,6.583e-05,2]
[394970425,1764227438711,-170.49008038,6.583e-05,2]
[394970426,1764227438720,-500.0,6.583e-05,2]
[394970427,1764227438730,-500.0,6.583e-05,2]
[394970428,1764227438740,-500.0,6.583e-05,2]
[394970429,1764227438749,-500.0,6.583e-05,2]
[394970430,1764227438758,-500.0,6.583e-05,2]
[394970431,1764227438768,-500.0,6.583e-05,2]
[394970432,1764227438777,-500.0,6.583e-05,2]
[394970433,1764227438787,-500.0,6.583e-05,2]
[394970434,1764227438796,-500.0,6.583e-05,2]
[394970435,1764227438805,-500.0,6.583e-05,2]
[394970436,1764227438815,-500.0,6.583e-05,2]
[394970437,1764227438825,-500.0,6.583e-05,2]
[394970438,1764227438834,-500.0,6.583e-05,2]
[394970439,1764227438846,-500.0,6.583e-05,2]
[394970440,1764227438856,-500.0,6.583e-05,2]
[394970441,1764227438869,-500.0,6.583e-05,2]
[394970442,1764227438880,-500.0,6.583e-05,2]
[394970443,1764227438890,-500.0,6.583e-05,2]
[394970444,1764227438900,-500.0,6.583e-05,2]
[394970445,1764227438910,-500.0,6.583e-05,2]
[394970446,1764227438920,-500.0,6.583e-05,2]
[394970447,1764227438930,-500.0,6.583e-05,2]
[394970448,1764227438941,-500.0,6.583e-05,2]
[394970449,1764227438950,-500.0,6.583e-05,2]
[394970450,1764227438960,-500.0,6.583e-05,2]
[394970451,1764227438970,-500.0,6.583e-05,2]
[394970452,1764227438980,-500.0,6.583e-05,2]
[394970453,1764227438989,-500.0,6.583e-05,2]
[394970454,1764227438999,-500.0,6.583e-05,2]
[394970455,1764227439009,-500.0,6.583e-05,2]
[394970456,1764227439018,-500.0,6.583e-05,2]
[394970457,1764227439028,-500.0,6.583e-05,2]
[394970458,1764227439038,-500.0,6.583e-05,2]
[394970459,1764227439048,-500.0,6.583e-05,2]
[394970460,1764227439058,-500.0,6.583e-05,2]
[394970461,1764227439068,-500.0,6.583e-05,2]
[394970462,1764227439078,-500.0,6.583e-05,2]
[394970463,1764227439088,-500.0,6.583e-05,2]
[394970464,1764227439097,-500.0,6.583e-05,2]
[394970465,1764227439107,-500.0,6.583e-05,2]
[394970466,1764227439117,-500.0,6.583e-05,2]
[394970467,1764227439127,-500.0,6.583e-05,2]
[394970468,1764227439136,-92772.24338121,6.586e-05,2]
[394970480,1764227446720,-4101.2795482,6.586e-05,2]
[394970555,1764228631658,-150.0,6.216e-05,2]
[394970556,1764228631668,-150.0,6.279e-05,2]
[394970558,1764228631678,-300.0,6.484e-05,2]
[394970560,1764228631688,-225.0,6.484e-05,2]
[394970562,1764228631697,-205.0,6.484e-05,2]
[394970564,1764228631707,-377.32265494,6.485e-05,2]
[394970566,1764228631719,-122.67734506,6.485e-05,2]
[394970567,1764228631728,-639.04164633,6.485e-05,2]
[394970569,1764228631737,-65.14595397,6.485e-05,2]
[394970580,1764228639988,-326.708073,6.485e-05,2]
[394970581,1764228639997,-326.708073,6.485e-05,2]
[394970582,1764228640011,-326.708073,6.485e-05,2]
[394970583,1764228640022,-174.32388801,6.485e-05,2]
[394970584,1764228640037,-260.53015802,6.485e-05,2]
[394970585,1764228640047,-319.34305627,6.485e-05,2]
[394970586,1764228640056,-320.12678571,6.485e-05,2]
[394970587,1764228640068,-179.87321429,6.485e-05,2]
[394970588,1764228640077,-500.0,6.485e-05,2]
[394970589,1764228640087,-451.76440415,6.485e-05,2]
[394970603,1764228645008,-326.708073,6.485e-05,2]